bitfinex/quotes_SOLUSD_20240624
["timestamp","ask_amount","ask_price","bid_price","bid_amount"]
[1719270457536,20.0,131.1,131.06,7.6299]
[1719270457834,20.0,131.1,131.05,7.6305]
[1719270458626,29.34,131.11,131.06,7.6299]
[1719270459740,35.3754,131.14,131.07,19.0737]
[1719270459913,35.3754,131.14,131.09,7.6282]
[1719270460508,35.3754,131.14,131.07,19.0737]
[1719270460742,7.97491303,131.13,131.08,7.6289]
[1719270461239,7.97491303,131.13,131.07,7.6293]
[1719270461936,100.0,131.12,131.06,19.0747]
[1719270462234,100.0,131.12,131.06,26.7046]
[1719270462405,100.0,131.12,131.05,6.5953]
[1719270462606,100.0,131.12,131.08,19.0718]
[1719270462834,100.0,131.12,131.07,7.6293]
[1719270463524,100.0,131.12,131.06,7.63]
[1719270464740,100.0,131.12,131.07,7.6294]
[1719270465234,7.97491303,131.13,131.06,38.1483]
[1719270465410,7.97491303,131.13,131.1,7.6272]
[1719270465608,7.97491303,131.13,131.11,7.627]
[1719270465805,15.658,131.15,131.1,7.6276]
[1719270466215,15.658,131.15,131.11,7.627]
[1719270466620,15.658,131.15,131.1,7.6275]
[1719270466819,15.658,131.15,131.11,7.627]
[1719270467233,115.658,131.15,131.09,19.07]
[1719270467414,115.658,131.15,131.1,7.6276]
[1719270467808,115.658,131.15,131.09,26.6982]
[1719270468017,115.658,131.15,131.1,7.6277]
[1719270468443,15.658,131.15,131.11,7.627]
[1719270470638,15.658,131.15,131.12,19.0661]
[1719270471329,15.658,131.15,131.06,38.1483]
[1719270471330,15.658,131.15,131.1,7.6275]
[1719270473136,15.658,131.15,131.11,7.627]
[1719270473726,7.97391204,131.16,131.09,38.1397]
[1719270473918,16.0512,131.18,131.09,38.1397]
[1719270473919,16.0512,131.18,131.15,7.6244]
[1719270475723,16.0512,131.18,131.14,7.6252]
[1719270476943,16.0512,131.18,131.15,7.6247]
[1719270477724,16.0512,131.18,131.14,7.6252]
[1719270478025,16.0512,131.18,131.13,26.6903]
[1719270478636,16.0512,131.18,131.14,7.6253]
[1719270478838,16.0512,131.18,131.13,26.6903]
[1719270479641,16.0512,131.18,131.11,7.6266]
[1719270479942,116.0512,131.18,131.1,26.6956]
[1719270480130,116.0512,131.18,131.11,7.6271]
[1719270480331,145.3912,131.18,131.11,7.6271]
[1719270480828,145.3912,131.18,131.1,19.0684]
[1719270481723,145.3912,131.18,131.12,7.6264]
[1719270481937,145.3912,131.18,131.08,6.5105]
[1719270481938,100.0,131.14,131.08,7.6283]
[1719270482140,100.0,131.14,131.09,7.6281]
[1719270482440,100.0,131.14,131.08,7.6288]
[1719270482441,106.4628,131.14,131.08,7.6288]
[1719270482743,15.3889,131.13,131.08,7.6288]
[1719270483135,15.3889,131.13,131.09,19.07]
[1719270483325,15.3889,131.13,131.11,7.627]
[1719270483930,15.3889,131.13,131.09,19.07]
[1719270484135,15.3889,131.13,131.03,44.22716045]
[1719270484447,23.36335969,131.13,131.07,38.1469]
[1719270484833,15.7022,131.16,131.07,38.1469]
[1719270485028,23.67511758,131.16,131.12,7.6261]
[1719270485239,23.67511758,131.16,131.12,26.6921]
[1719270485427,15.7022,131.16,131.12,26.6921]
[1719270485841,100.0,131.14,131.09,19.07]
[1719270486238,100.0,131.12,131.06,26.7043]
[1719270486421,100.0,131.12,131.03,38.1567]
[1719270486422,106.3533,131.12,131.04,7.6312]
[1719270486626,106.3533,131.12,131.06,7.63]
[1719270487030,106.3533,131.12,131.07,7.6294]
[1719270488349,100.0,131.1,131.05,26.7065]
[1719270488931,57.06821036,131.11,131.05,19.076]
[1719270489139,57.06821036,131.11,131.07,7.6295]
[1719270489339,27.72821036,131.11,131.07,7.6295]
[1719270489733,27.72821036,131.11,131.06,7.6299]
[1719270490747,27.72821036,131.11,131.05,26.7065]
[1719270492348,27.72821036,131.11,131.06,7.63]
[1719270493949,27.72821036,131.11,131.05,26.7065]
[1719270494834,27.72821036,131.11,131.07,7.6291]
[1719270495035,16.5416,131.11,131.07,7.6291]
[1719270495728,16.5416,131.11,131.05,19.076]
[1719270495933,7.97653403,131.1,131.05,26.7062]
[1719270496138,107.97653403,131.1,131.05,26.7062]
[1719270496531,107.97653403,131.1,131.07,19.0731]
[1719270496532,7.97653403,131.1,131.07,19.0731]
[1719270496734,7.97653403,131.1,131.09,7.6283]
[1719270496929,27.55081036,131.14,131.09,7.6283]
[1719270497550,27.55081036,131.14,131.1,7.6276]
[1719270498050,27.55081036,131.14,131.11,7.627]
[1719270498232,16.3642,131.14,131.09,19.07]
[1719270498433,16.3642,131.14,131.11,7.6271]
[1719270498647,16.3642,131.14,131.1,7.6276]
[1719270499360,16.3642,131.14,131.09,26.6981]
[1719270499868,16.3642,131.14,131.09,19.07]
[1719270500650,14.44539517,131.15,131.13,7.626]
[1719270500651,7.97479517,131.15,131.13,7.626]
[1719270500853,11.18661036,131.17,131.13,7.626]
[1719270501760,11.18661036,131.17,131.11,19.067]
[1719270502258,15.4319,131.12,131.05,7.6305]
[1719270502462,15.4319,131.12,131.05,26.7065]
[1719270504450,15.4319,131.12,131.07,19.073]
[1719270504970,15.4319,131.12,131.07,26.7024]
[1719270505661,15.4319,131.12,131.08,7.6288]
[1719270507448,15.4319,131.12,131.09,19.0703]
[1719270509568,15.4319,131.12,131.1,7.6276]
[1719270510445,15.4319,131.12,131.11,7.6271]
[1719270510767,15.4319,131.12,131.1,7.6276]
[1719270511652,15.4319,131.12,131.11,7.6271]
[1719270512077,7.97418426,131.15,131.11,7.6271]
[1719270513763,7.97418426,131.15,131.1,7.6275]
[1719270513963,7.97418426,131.15,131.11,7.6271]
[1719270514165,7.97418426,131.15,131.09,19.0703]
[1719270514166,7.97418426,131.15,131.07,38.1447]
[1719270514470,15.121,131.16,131.13,26.6901]
[1719270515076,15.121,131.16,131.13,19.0643]
[1719270515256,23.15062104,131.18,131.13,7.6258]
[1719270515764,30.77372104,131.18,131.12,19.0659]
[1719270515962,23.15062104,131.18,131.12,26.6921]
[1719270516280,23.15062104,131.18,131.12,19.0659]
[1719270516584,23.15062104,131.18,131.12,26.6923]
[1719270516881,23.15062104,131.18,131.13,7.6258]
[1719270517567,23.15062104,131.18,131.12,26.6923]
[1719270518372,23.15062104,131.18,131.13,7.6258]
[1719270519974,23.15062104,131.18,131.12,26.6923]
[1719270520272,7.6241,131.17,131.09,26.6981]
[1719270520467,7.6241,131.17,131.1,7.6277]
[1719270520673,162.56319098,131.18,131.11,7.6268]
[1719270520971,20.0,131.17,131.11,7.6268]
[1719270521279,100.0,131.16,131.1,7.6276]
[1719270521481,6.072,131.15,131.09,26.6979]
[1719270521659,6.072,131.15,131.1,7.6274]
[1719270521860,6.072,131.15,131.09,26.6979]
[1719270522365,6.072,131.15,131.1,7.6276]
[1719270522566,6.072,131.15,131.11,7.6271]
[1719270522757,23.15062104,131.18,131.09,35.8891]
[1719270523072,15.1784,131.18,131.17,7.6236]
[1719270523257,14.33445066,131.21,131.19,7.6222]
[1719270523463,6.3636,131.21,131.19,7.6222]
[1719270524087,16.5874,131.22,131.19,7.6222]
[1719270524289,7.96947189,131.23,131.2,19.054]
[1719270524588,15.4407,131.27,131.21,7.6209]
[1719270524763,23.40783902,131.27,131.2,26.6758]
[1719270525383,46.92279128,131.26,131.17,19.059]
[1719270525565,39.30399128,131.26,131.19,7.6225]
[1719270526584,39.30399128,131.26,131.2,7.6219]
[1719270526800,20.0,131.25,131.2,7.6219]
[1719270527298,100.0,131.23,131.18,7.6226]
[1719270527586,120.0,131.25,131.18,7.6226]
[1719270528182,127.619,131.25,131.17,26.6825]
[1719270528387,120.0,131.25,131.18,7.623]
[1719270530897,137.58309128,131.25,131.18,7.623]
[1719270532662,15.1906,131.21,131.17,19.059]
[1719270535088,23.16127129,131.21,131.17,19.059]
[1719270536160,23.16127129,131.21,131.17,26.6826]
[1719270537391,23.16127129,131.21,131.12,38.1328]
[1719270537392,100.0,131.2,131.16,7.6242]
[1719270540265,33.22761826,131.21,131.13,19.064]
[1719270540266,21.8693,131.17,131.13,19.064]
[1719270540590,100.0,131.16,131.12,7.6265]
[1719270541092,100.0,131.16,131.12,19.0659]
[1719270541262,100.0,131.16,131.13,7.6259]
[1719270541865,21.8693,131.17,131.13,7.6259]
[1719270542066,21.8693,131.17,131.14,7.6254]
[1719270542287,9.96399128,131.19,131.15,7.6248]
[1719270542604,122.7303,131.2,131.16,7.6242]
[1719270542605,22.7303,131.2,131.16,7.6242]
[1719270542973,20.0,131.19,131.16,7.6242]
[1719270543485,100.0,131.18,131.11,19.067]
[1719270543675,100.0,131.18,131.13,7.6259]
[1719270544889,7.97067129,131.21,131.12,44.2579]
[1719270545193,15.7736,131.23,131.17,26.6821]
[1719270545394,15.7736,131.23,131.17,19.0585]
[1719270545687,15.7736,131.23,131.19,19.0556]
[1719270546296,15.7736,131.23,131.2,7.6215]
[1719270547568,15.7736,131.23,131.21,7.6213]
[1719270547762,15.7736,131.23,131.19,26.6776]
[1719270547995,15.7736,131.23,131.16,19.0601]
[1719270548294,15.7736,131.23,131.18,7.623]
[1719270548490,15.7736,131.23,131.18,26.6801]
[1719270549276,15.7736,131.23,131.19,7.6222]
[1719270551105,15.7736,131.23,131.18,26.6801]
[1719270551275,15.7736,131.23,131.18,19.0572]
[1719270552097,15.7736,131.23,131.19,7.6221]
[1719270553691,7.96911542,131.24,131.2,19.0544]
[1719270553902,15.0099,131.26,131.2,19.0544]
[1719270554104,22.97795611,131.26,131.2,26.6762]
[1719270555467,22.97795611,131.26,131.21,7.6212]
[1719270555804,22.97795611,131.26,131.24,7.6194]
[1719270555805,15.0099,131.26,131.24,7.6194]
[1719270556097,15.0099,131.26,131.18,44.5144]
[1719270556502,15.0099,131.26,131.24,19.0482]
[1719270557402,15.0099,131.26,131.22,7.6206]
[1719270558870,7.9667679,131.28,131.23,19.0497]
[1719270559071,100.0,131.29,131.2,19.0539]
[1719270559296,115.58326472,131.29,131.22,7.6206]
[1719270559600,107.96646472,131.29,131.22,7.6206]
[1719270560311,107.96646472,131.29,131.2,19.0539]
[1719270560312,22.4401,131.26,131.2,19.0539]
[1719270560475,100.0,131.25,131.2,19.0539]
[1719270560678,107.6191,131.25,131.17,26.6817]
[1719270560870,107.6191,131.25,131.17,19.0586]
[1719270561504,100.0,131.25,131.18,7.6226]
[1719270561712,100.0,131.25,131.19,7.6225]
[1719270562182,100.0,131.25,131.17,19.0586]
[1719270562713,59.87886526,131.26,131.19,19.0552]
[1719270562999,20.0,131.25,131.2,7.6217]
[1719270563681,20.0,131.25,131.19,19.0552]
[1719270563682,20.0,131.25,131.19,26.6775]
[1719270563906,120.0,131.25,131.19,26.6775]
[1719270564506,120.0,131.25,131.2,7.6219]
[1719270567624,120.0,131.25,131.19,26.6775]
[1719270567817,20.0,131.25,131.19,19.0552]
[1719270567999,30.53886526,131.26,131.2,7.6218]
[1719270568322,15.9014,131.26,131.22,7.6207]
[1719270569104,15.9014,131.26,131.17,6.0843]
[1719270569105,7.96646472,131.29,131.23,19.05]
[1719270569309,16.4625,131.33,131.28,7.6173]
[1719270569494,16.4625,131.33,131.25,19.0471]
[1719270569703,16.4625,131.33,131.27,7.6174]
[1719270569704,24.42657541,131.33,131.27,7.6174]
[1719270571136,24.42657541,131.33,131.28,7.6172]
[1719270571349,24.42657541,131.33,131.28,26.6604]
[1719270571707,24.42657541,131.33,131.29,7.6167]
[1719270572043,16.4625,131.33,131.29,7.6167]
[1719270572228,16.4625,131.33,131.28,19.0432]
[1719270572410,16.4625,131.33,131.29,7.6163]
[1719270575140,16.4625,131.33,131.28,19.0432]
[1719270575444,16.4625,131.33,131.31,7.6153]
[1719270575614,7.96274892,131.35,131.27,38.0891]
[1719270575939,6.3325,131.37,131.33,7.6142]
[1719270578126,24.42758915,131.38,131.34,19.0339]
[1719270579426,24.42758915,131.38,131.35,7.6131]
[1719270581038,24.42758915,131.38,131.36,7.6126]
[1719270583823,24.42758915,131.38,131.3,19.039]
[1719270584126,24.42758915,131.38,131.32,7.6147]
[1719270584127,100.0,131.37,131.32,7.6147]
[1719270585418,100.0,131.37,131.31,7.6154]
[1719270585826,100.0,131.37,131.32,7.6149]
[1719270586038,100.0,131.37,131.33,7.6144]
[1719270586340,100.0,131.37,131.32,26.6514]
[1719270586542,22.0443,131.33,131.29,19.0411]
[1719270587049,22.0443,131.33,131.28,7.6168]
[1719270587050,100.0,131.31,131.28,7.6168]
[1719270587344,151.3843,131.33,131.28,19.0422]
[1719270587536,22.0443,131.33,131.3,7.6161]
[1719270589047,22.0443,131.33,131.29,7.6166]
[1719270589353,16.9505322,131.36,131.3,19.0393]
[1719270589550,8.98701939,131.36,131.31,7.6154]
[1719270589925,100.0,131.34,131.27,19.0439]
[1719270590352,100.0,131.34,131.28,7.6168]
[1719270591046,100.0,131.34,131.29,7.6166]
[1719270591425,100.0,131.34,131.28,7.617]
[1719270591939,100.0,131.34,131.29,7.6166]
[1719270592634,100.0,131.34,131.3,7.6159]
[1719270592836,100.0,131.34,131.29,26.6578]
[1719270593455,100.0,131.34,131.29,26.6577]
[1719270595064,100.0,131.34,131.3,7.6161]
[1719270595757,100.0,131.34,131.29,19.0412]
[1719270595942,138.32701939,131.36,131.31,7.6154]
[1719270596143,108.98701939,131.36,131.31,7.6154]
[1719270596354,20.0,131.35,131.31,7.6154]
[1719270597063,20.0,131.35,131.32,7.6149]
[1719270597364,8.98701939,131.36,131.33,26.6497]
[1719270597543,8.98701939,131.36,131.33,19.0355]
[1719270598161,8.98701939,131.36,131.32,7.6148]
[1719270598863,8.98701939,131.36,131.34,7.6133]
[1719270599064,8.98701939,131.36,131.33,19.035]
[1719270599444,108.98701939,131.36,131.33,19.035]
[1719270599658,108.98701939,131.36,131.32,7.6148]
[1719270600062,8.98701939,131.36,131.32,7.6148]
[1719270601063,8.98701939,131.36,131.3,19.0394]
[1719270601264,8.98701939,131.36,131.27,19.0441]
[1719270601265,108.98701939,131.36,131.27,19.0441]
[1719270601451,20.0,131.35,131.29,7.6165]
[1719270601653,20.0,131.35,131.3,7.616]
[1719270601963,27.96301374,131.35,131.3,7.616]
[1719270602160,27.96301374,131.35,131.29,19.0413]
[1719270602566,20.0,131.35,131.31,7.6153]
[1719270602865,22.0187,131.37,131.31,19.0377]
[1719270603041,20.0,131.36,131.31,19.0377]
[1719270603440,20.0,131.36,131.32,7.6148]
[1719270604660,20.0,131.36,131.31,19.0377]
[1719270604864,120.0,131.36,131.3,7.6156]
[1719270605664,51.3587,131.37,131.31,7.6155]
[1719270605867,15.5672,131.37,131.34,7.6136]
[1719270607673,15.5672,131.37,131.32,26.6508]
[1719270607973,15.5672,131.37,131.29,19.041]
[1719270608146,15.5672,131.37,131.31,7.6154]
[1719270608346,15.5672,131.37,131.29,19.041]
[1719270608347,100.0,131.36,131.3,7.6159]
[1719270608773,100.0,131.34,131.26,19.0452]
[1719270608978,106.0691,131.34,131.23,38.0983]
[1719270609154,106.0691,131.34,131.28,26.66]
[1719270609666,106.0691,131.34,131.3,7.6161]
[1719270609862,6.0691,131.34,131.29,7.6166]
[1719270610068,6.0691,131.34,131.31,7.6155]
[1719270610266,8.98701939,131.36,131.31,7.6154]
[1719270611348,8.98701939,131.36,131.32,0.13023023]
[1719270611554,100.0,131.35,131.32,0.13023023]
[1719270613174,8.98701939,131.36,131.32,0.13023023]
[1719270613561,100.0,131.35,131.32,0.13023023]
[1719270616258,107.6144,131.33,131.32,0.13023023]
[1719270616478,100.0,131.33,131.32,0.13023023]
[1719270617277,107.96264069,131.35,131.32,0.13023023]
[1719270617785,100.0,131.35,131.32,0.13023023]
[1719270618658,107.9626527,131.35,131.32,0.13023023]
[1719270622361,7.9626527,131.35,131.32,0.13023023]
[1719270622575,115.5672,131.37,131.34,7.6138]
[1719270622576,15.5672,131.37,131.34,7.6138]
[1719270622768,15.5672,131.37,131.35,7.6128]
[1719270622973,100.0,131.4,131.35,7.6128]
[1719270622974,7.96003383,131.39,131.35,26.6453]
[1719270623270,7.96003383,131.39,131.33,7.6142]
[1719270625592,7.96003383,131.39,131.32,26.6514]
[1719270626188,7.96003383,131.39,131.33,7.6143]
[1719270627181,7.96003383,131.39,131.34,7.6137]
[1719270627659,7.96003383,131.39,131.33,7.6142]
[1719270628291,7.96003383,131.39,131.34,7.6134]
[1719270628497,100.0,131.4,131.34,7.6134]
[1719270628994,20.0,131.39,131.34,7.6134]
[1719270631970,100.0,131.4,131.34,7.6134]
[1719270633498,100.0,131.38,131.34,7.6134]
[1719270634991,100.0,131.38,131.33,6.6014]
[1719270635177,100.0,131.38,131.33,14.2156]
[1719270636076,8.98701939,131.41,131.34,19.0338]
[1719270636391,6.18426561,131.44,131.4,7.6099]
[1719270636600,7.9570139,131.43,131.4,7.6099]
[1719270636785,106.5819,131.45,131.4,7.6099]
[1719270637176,100.0,131.45,131.35,38.0639]
[1719270637376,100.0,131.43,131.37,7.6119]
[1719270637577,100.0,131.43,131.37,26.6415]
[1719270638687,100.0,131.43,131.38,7.6114]
[1719270639496,100.0,131.43,131.37,26.6415]
[1719270640371,100.0,131.43,131.38,7.6114]
[1719270641094,100.0,131.41,131.38,7.6114]
[1719270641296,100.0,131.41,131.37,26.6415]
[1719270641474,100.0,131.43,131.37,26.6415]
[1719270642606,100.0,131.43,131.38,7.6113]
[1719270643791,100.0,131.43,131.37,26.6416]
[1719270643991,100.0,131.4,131.35,7.6128]
[1719270644390,100.0,131.4,131.34,19.0334]
[1719270644598,100.0,131.38,131.34,19.0334]
[1719270645279,100.0,131.38,131.34,26.6472]
[1719270645491,100.0,131.38,131.35,7.6131]
[1719270645674,100.0,131.4,131.35,7.6131]
[1719270647676,100.0,131.36,131.31,19.0381]
[1719270647906,100.0,131.36,131.3,7.616]
[1719270648681,100.0,131.36,131.31,7.6155]
[1719270648892,100.0,131.34,131.29,7.6166]
[1719270649093,100.0,131.34,131.28,19.0423]
[1719270649094,100.0,131.32,131.28,19.0423]
[1719270650798,100.0,131.32,131.26,7.6184]
[1719270651292,100.0,131.29,131.23,7.6198]
[1719270651490,100.0,131.29,131.25,7.6188]
[1719270651681,100.0,131.29,131.24,26.6678]
[1719270651992,100.0,131.29,131.25,7.619]
[1719270652179,15.4305,131.28,131.24,19.0483]
[1719270652512,15.4305,131.28,131.23,7.6196]
[1719270652799,15.4305,131.28,131.24,7.6195]
[1719270653898,15.4305,131.28,131.23,7.6202]
[1719270654694,15.4305,131.28,131.22,7.6206]
[1719270655300,15.30026977,131.28,131.22,7.6206]
[1719270658095,15.30026977,131.28,131.23,7.6201]
[1719270660503,15.30026977,131.28,131.22,7.6206]
[1719270661710,100.0,131.24,131.17,19.0578]
[1719270661883,100.0,131.24,131.18,7.6229]
[1719270661884,15.5313,131.23,131.18,7.6229]
[1719270665202,100.0,131.21,131.14,19.0628]
[1719270665383,100.0,131.21,131.16,7.6238]
[1719270666206,123.50104216,131.23,131.16,7.6238]
[1719270666503,115.5313,131.23,131.18,7.6226]
[1719270667102,115.5313,131.23,131.17,7.6235]
[1719270667478,115.5313,131.23,131.16,19.0599]
[1719270667479,115.5313,131.23,131.18,7.623]
[1719270669194,100.0,131.21,131.16,19.0599]
[1719270669596,7.97015933,131.22,131.16,26.6836]
[1719270669788,7.97015933,131.22,131.16,19.0599]
[1719270669991,15.5313,131.23,131.18,19.0572]
[1719270670191,15.5313,131.23,131.19,7.622]
[1719270671309,15.5313,131.23,131.2,7.6219]
[1719270677114,7.96839975,131.25,131.21,7.6213]
[1719270677414,6.093,131.26,131.2,19.054]
[1719270677713,6.093,131.26,131.21,7.6211]
[1719270679918,16.4475,131.27,131.22,19.0515]
[1719270680208,16.4475,131.27,131.23,7.6198]
[1719270680792,16.4475,131.27,131.24,7.6196]
[1719270681715,16.4475,131.27,131.26,7.6184]
[1719270681926,16.4475,131.27,131.24,19.0485]
[1719270682094,16.4475,131.27,131.25,7.6189]
[1719270682294,16.4475,131.27,131.24,19.0485]
[1719270683016,16.4475,131.27,131.24,26.6676]
[1719270683317,16.4475,131.27,131.25,7.6188]
[1719270683718,22.0794,131.3,131.25,7.6188]
[1719270685191,22.0794,131.3,131.24,19.0485]
[1719270685410,22.0794,131.3,131.24,26.6679]
[1719270685721,29.6959,131.3,131.22,7.6203]
[1719270686015,29.6959,131.3,131.23,7.6201]
[1719270686513,22.0794,131.3,131.23,7.6201]
[1719270686722,22.0794,131.3,131.24,7.6195]
[1719270691001,22.0794,131.3,131.25,7.6189]
[1719270692717,7.96525162,131.31,131.26,9.77]
[1719270693024,9.77,131.32,131.28,7.6168]
[1719270693632,16.2145,131.33,131.29,19.041]
[1719270694018,9.77,131.32,131.29,26.6573]
[1719270694218,9.77,131.32,131.29,19.041]
[1719270694733,16.2145,131.33,131.29,19.041]
[1719270695633,7.96276234,131.35,131.34,7.6138]
[1719270695813,100.0,131.41,131.33,19.0349]
[1719270696132,7.95991168,131.39,131.33,19.0349]
[1719270696336,7.95991168,131.39,131.33,26.6492]
[1719270696517,7.95991168,131.39,131.33,19.0349]
[1719270696701,100.0,131.41,131.33,26.6488]
[1719270696906,100.0,131.39,131.33,26.6488]
[1719270700325,100.0,131.39,131.34,7.6137]
[1719270700525,16.5258,131.38,131.33,19.0349]
[1719270700830,16.5258,131.38,131.31,7.6154]
[1719270701039,100.0,131.37,131.31,7.6154]
[1719270702343,100.0,131.37,131.32,7.6148]
[1719270703146,100.0,131.35,131.28,7.6169]
[1719270703359,43.351,131.36,131.28,7.6168]
[1719270703360,115.5663,131.33,131.28,7.6168]
[1719270703709,15.5663,131.33,131.31,7.6154]
[1719270703915,15.5663,131.33,131.3,7.6159]
[1719270704113,15.5663,131.33,131.29,26.6576]
[1719270707928,15.5663,131.33,131.29,19.0411]
[1719270708122,15.5663,131.33,131.31,7.6154]
[1719270708440,6.2316,131.4,131.32,38.0728]
[1719270708645,6.2316,131.4,131.37,19.0292]
[1719270708945,6.2316,131.4,131.37,26.6411]
[1719270709317,6.2316,131.4,131.37,19.0292]
[1719270710044,6.2316,131.4,131.35,7.6131]
[1719270710225,16.38292774,131.4,131.34,26.6472]
[1719270710624,16.11683348,131.4,131.34,26.6472]
[1719270711847,100.0,131.39,131.34,26.6472]
[1719270712033,16.11683348,131.4,131.34,26.6472]
[1719270712849,100.0,131.38,131.34,26.6472]
[1719270713156,100.0,131.38,131.31,19.0383]
[1719270713335,100.0,131.38,131.33,7.614]
[1719270713527,100.0,131.38,131.31,19.0383]
[1719270714239,9.88523348,131.39,131.31,19.0383]
[1719270714551,9.88523348,131.39,131.33,19.035]
[1719270715041,15.1897,131.36,131.31,7.6154]
[1719270715249,15.1897,131.36,131.3,26.656]
[1719270715744,15.1897,131.36,131.31,7.6155]
[1719270716636,15.1897,131.36,131.3,26.656]
[1719270716839,25.07493348,131.36,131.3,26.656]
[1719270717032,25.07493348,131.36,131.31,7.6154]
[1719270717633,100.0,131.35,131.3,26.6561]
[1719270717833,100.0,131.35,131.29,7.6164]
[1719270718230,100.0,131.35,131.27,19.0438]
[1719270718231,100.0,131.35,131.3,7.6161]
[1719270718435,100.0,131.35,131.3,7.6159]
[1719270718749,25.07493348,131.36,131.31,7.615]
[1719270719054,20.0,131.35,131.3,7.6159]
[1719270719250,33.0370663,131.36,131.3,7.6159]
[1719270719563,100.0,131.35,131.29,26.6574]
[1719270719859,109.88523348,131.35,131.29,26.6574]
[1719270720336,109.88523348,131.35,131.3,7.616]
[1719270720940,100.0,131.33,131.3,7.616]
[1719270721755,100.0,131.33,131.29,26.6574]
[1719270722631,100.0,131.33,131.29,19.0409]
[1719270722844,6.6299,131.34,131.29,26.6572]
[1719270724368,16.51513348,131.34,131.29,26.6572]
[1719270724957,100.0,131.33,131.29,26.6572]
[1719270725191,100.0,131.33,131.29,19.0409]
[1719270725661,100.0,131.33,131.29,26.6575]
[1719270726159,109.88523348,131.33,131.29,26.6575]
[1719270726339,109.88523348,131.33,131.28,7.6172]
[1719270726858,109.88523348,131.33,131.29,7.6167]
[1719270727357,9.88523348,131.33,131.31,7.6151]
[1719270727656,109.88523348,131.38,131.32,19.0371]
[1719270727955,109.88523348,131.38,131.35,7.6132]
[1719270727956,9.88523348,131.38,131.35,7.6132]
[1719270728462,9.88523348,131.38,131.34,26.6478]
[1719270729467,9.88523348,131.38,131.32,7.6145]
[1719270729848,100.0,131.37,131.31,19.038]
[1719270730035,100.0,131.37,131.31,26.6534]
[1719270730233,109.88523348,131.37,131.31,26.6534]
[1719270730438,100.0,131.35,131.31,26.6534]
[1719270730650,100.0,131.35,131.26,38.0913]
[1719270731044,100.0,131.35,131.3,7.6161]
[1719270732163,100.0,131.35,131.31,7.6155]
[1719270732351,10.14510477,131.36,131.31,7.6155]
[1719270733535,10.14510477,131.36,131.3,7.6161]
[1719270733736,15.1956,131.33,131.28,19.0424]
[1719270734070,15.1956,131.33,131.28,26.6591]
[1719270735669,15.1956,131.33,131.29,7.6165]
[1719270736370,15.1956,131.33,131.3,7.616]
[1719270737558,15.1956,131.33,131.29,7.6165]
[1719270738164,15.1956,131.33,131.28,26.6596]
[1719270739550,15.1956,131.33,131.29,7.6166]
[1719270739974,15.1956,131.33,131.28,26.6595]
[1719270740873,15.1956,131.33,131.28,19.0424]
[1719270741254,15.1956,131.33,131.28,26.6596]
[1719270742880,15.1956,131.33,131.28,19.0424]
[1719270743182,100.0,131.31,131.26,7.6184]
[1719270743478,100.0,131.31,131.25,26.6658]
[1719270743646,109.88523348,131.31,131.25,26.6658]
[1719270744075,109.88523348,131.31,131.26,7.6181]
[1719270744569,9.88523348,131.31,131.25,19.0468]
[1719270744966,9.88523348,131.31,131.26,7.6182]
[1719270748678,9.88523348,131.31,131.25,19.0468]
[1719270748887,9.88523348,131.31,131.22,38.1012]